[Event "Titled Tuesday Blitz April 19 Early 2022"]
[White "Zhigalko, Sergei"]
[Black "Csonka, Balazs"]
[WhiteFideId "13502956"]
[BlackFideId "742910"]
[WhiteElo "2662"]
[BlackElo "2404"]
[Result "1-0"]
[Round "07"]
[TimeControl "180+1"]
[Date "2022.04.19"]
[WhiteClock "0:00:05"]
[BlackClock "0:00:03"]

1. e4 {[%clk 0:03:00]}  e6 {[%clk 0:02:58]} 2. d4 {[%clk 0:03:00]}  d5 {[%clk 0:02:58]} 3. e5 {[%clk 0:03:01]}  c5 {[%clk 0:02:56]} 4. c3 {[%clk 0:03:01]}  Nc6 {[%clk 0:02:54]} 5. Nf3 {[%clk 0:03:02]}  Bd7 {[%clk 0:02:54]} 6. Be2 {[%clk 0:03:02]}  Nge7 {[%clk 0:02:42]} 7. Na3 {[%clk 0:03:02]}  Nf5 {[%clk 0:02:32]} 8. Nc2 {[%clk 0:03:02]}  Rc8 {[%clk 0:02:29]} 9. O-O {[%clk 0:03:01]}  Be7 {[%clk 0:02:28]} 10. dxc5 {[%clk 0:03:00]}  Bxc5 {[%clk 0:02:27]} 11. Bd3 {[%clk 0:03:01]}  Nh4 {[%clk 0:02:22]} 12. Re1 {[%clk 0:02:57]}  Bb6 {[%clk 0:01:49]} 13. Bf4 {[%clk 0:02:17]}  Nxf3+ {[%clk 0:01:15]} 14. Qxf3 {[%clk 0:02:17]}  O-O {[%clk 0:01:08]} 15. Qh5 {[%clk 0:01:54]}  g6 {[%clk 0:01:08]} 16. Qh6 {[%clk 0:01:54]}  f5 {[%clk 0:01:04]} 17. Bg5 {[%clk 0:01:30]}  Qe8 {[%clk 0:01:03]} 18. Bf6 {[%clk 0:01:29]}  Rxf6 {[%clk 0:00:33]} 19. exf6 {[%clk 0:01:28]}  Qf8 {[%clk 0:00:33]} 20. Qxf8+ {[%clk 0:01:07]}  Rxf8 {[%clk 0:00:34]} 21. Bb5 {[%clk 0:01:08]}  Rxf6 {[%clk 0:00:33]} 22. Rad1 {[%clk 0:01:01]}  Kf8 {[%clk 0:00:31]} 23. c4 {[%clk 0:00:58]}  a6 {[%clk 0:00:29]} 24. Ba4 {[%clk 0:00:58]}  Ba5 {[%clk 0:00:21]} 25. Re2 {[%clk 0:00:27]}  b5 {[%clk 0:00:17]} 26. cxb5 {[%clk 0:00:12]}  Nd8 {[%clk 0:00:17]} 27. Nd4 {[%clk 0:00:06]}  Bb6 {[%clk 0:00:17]} 28. Rc2 {[%clk 0:00:03]}  Bxd4 {[%clk 0:00:15]} 29. Rxd4 {[%clk 0:00:04]}  axb5 {[%clk 0:00:15]} 30. Bb3 {[%clk 0:00:04]}  Nc6 {[%clk 0:00:13]} 31. Rd1 {[%clk 0:00:04]}  Ke7 {[%clk 0:00:13]} 32. Rc5 {[%clk 0:00:05]}  b4 {[%clk 0:00:11]} 33. Ba4 {[%clk 0:00:05]}  Kd6 {[%clk 0:00:10]} 34. Rdc1 {[%clk 0:00:05]}  Nd4 {[%clk 0:00:11]} 35. Bxd7 {[%clk 0:00:04]}  Ne2+ {[%clk 0:00:11]} 36. Kf1 {[%clk 0:00:04]}  Nxc1 {[%clk 0:00:12]} 37. Rxc1 {[%clk 0:00:03]}  Kxd7 {[%clk 0:00:12]} 38. Rc5 {[%clk 0:00:03]}  e5 {[%clk 0:00:11]} 39. Rxd5+ {[%clk 0:00:03]}  Kc7 {[%clk 0:00:06]} 40. Rxe5 {[%clk 0:00:01]}  Ra6 {[%clk 0:00:06]} 41. Rc5+ {[%clk 0:00:01]}  Kd6 {[%clk 0:00:06]} 42. Rb5 {[%clk 0:00:01]}  Rxa2 {[%clk 0:00:06]} 43. Rxb4 {[%clk 0:00:02]}  h5 {[%clk 0:00:04]} 44. h4 {[%clk 0:00:02]}  Ke5 {[%clk 0:00:03]} 45. Rb6 {[%clk 0:00:01]}  Kf4 {[%clk 0:00:02]} 46. Rb4+ {[%clk 0:00:01]}  Ke5 {[%clk 0:00:03]} 47. g3 {[%clk 0:00:02]}  Kf6 {[%clk 0:00:03]} 48. Rb6+ {[%clk 0:00:02]}  Kf7 {[%clk 0:00:02]} 49. Ke2 {[%clk 0:00:03]}  Ra1 {[%clk 0:00:02]} 50. Rb7+ {[%clk 0:00:03]}  Kf6 {[%clk 0:00:02]} 51. Rb6+ {[%clk 0:00:04]}  Kf7 {[%clk 0:00:02]} 52. Ke3 {[%clk 0:00:04]}  Kg7 {[%clk 0:00:01]} 53. Kf4 {[%clk 0:00:04]}  Rf1 {[%clk 0:00:02]} 54. Kg5 {[%clk 0:00:04]}  Rxf2 {[%clk 0:00:02]} 55. Rxg6+ {[%clk 0:00:04]}  Kf7 {[%clk 0:00:03]} 56. Rf6+ {[%clk 0:00:04]}  Ke7 {[%clk 0:00:03]} 57. Rxf5 {[%clk 0:00:04]}  Rg2 {[%clk 0:00:02]} 58. Rf3 {[%clk 0:00:04]}  Rxb2 {[%clk 0:00:02]} 59. Kxh5 {[%clk 0:00:05]}  Rb6 {[%clk 0:00:02]} 60. g4 {[%clk 0:00:04]}  Rc6 {[%clk 0:00:03]} 61. g5 {[%clk 0:00:05]}  Rf6 {[%clk 0:00:03]} 62. Rxf6 {[%clk 0:00:05]} 1-0


[Site "https://www.chess.com"]

[Event "Titled Tuesday Blitz April 19 Early 2022"]
[White "Zhu, Jiner"]
[Black "Melikhov, Evgeny V."]
[WhiteFideId "8608059"]
[BlackFideId "4122046"]
[WhiteElo "2281"]
[BlackElo "1931"]
[Result "1-0"]
[Round "07"]
[TimeControl "180+1"]
[Date "2022.04.19"]
[WhiteClock "0:00:17"]
[BlackClock "0:00:13"]

1. e4 {[%clk 0:03:00]}  e5 {[%clk 0:02:54]} 2. Nf3 {[%clk 0:02:59]}  Nc6 {[%clk 0:02:52]} 3. Bb5 {[%clk 0:03:00]}  a6 {[%clk 0:02:50]} 4. Ba4 {[%clk 0:03:01]}  Nf6 {[%clk 0:02:49]} 5. O-O {[%clk 0:03:01]}  Nxe4 {[%clk 0:02:50]} 6. d4 {[%clk 0:02:58]}  b5 {[%clk 0:02:50]} 7. Bb3 {[%clk 0:02:58]}  d5 {[%clk 0:02:50]} 8. dxe5 {[%clk 0:02:59]}  Be6 {[%clk 0:02:51]} 9. Qe2 {[%clk 0:02:59]}  Be7 {[%clk 0:02:49]} 10. Rd1 {[%clk 0:02:59]}  O-O {[%clk 0:02:49]} 11. c4 {[%clk 0:02:52]}  bxc4 {[%clk 0:02:49]} 12. Bxc4 {[%clk 0:02:52]}  Bc5 {[%clk 0:02:49]} 13. Be3 {[%clk 0:02:52]}  Bxe3 {[%clk 0:02:49]} 14. Qxe3 {[%clk 0:02:52]}  Qb8 {[%clk 0:02:49]} 15. Bb3 {[%clk 0:02:51]}  Na5 {[%clk 0:02:47]} 16. Nbd2 {[%clk 0:02:45]}  Qa7 {[%clk 0:02:46]} 17. Qxa7 {[%clk 0:02:19]}  Rxa7 {[%clk 0:02:45]} 18. Rac1 {[%clk 0:02:18]}  Rb7 {[%clk 0:02:05]} 19. Nd4 {[%clk 0:02:14]}  Nxd2 {[%clk 0:02:03]} 20. Rxd2 {[%clk 0:02:15]}  Nxb3 {[%clk 0:02:02]} 21. Nxb3 {[%clk 0:02:07]}  Rfb8 {[%clk 0:01:47]} 22. h3 {[%clk 0:02:03]}  h6 {[%clk 0:01:46]} 23. Rc5 {[%clk 0:02:02]}  d4 {[%clk 0:01:35]} 24. Rxd4 {[%clk 0:01:44]}  Bxb3 {[%clk 0:01:33]} 25. axb3 {[%clk 0:01:45]}  Rxb3 {[%clk 0:01:33]} 26. Rxc7 {[%clk 0:01:45]}  R8b7 {[%clk 0:01:14]} 27. Rd8+ {[%clk 0:01:40]}  Kh7 {[%clk 0:01:14]} 28. Rdd7 {[%clk 0:01:34]}  Rxc7 {[%clk 0:01:14]} 29. Rxc7 {[%clk 0:01:35]}  Kg6 {[%clk 0:01:12]} 30. Rc6+ {[%clk 0:01:27]}  f6 {[%clk 0:01:12]} 31. Rxa6 {[%clk 0:01:22]}  Rxb2 {[%clk 0:01:11]} 32. e6 {[%clk 0:01:17]}  Re2 {[%clk 0:01:09]} 33. g4 {[%clk 0:01:14]}  h5 {[%clk 0:01:03]} 34. Kg2 {[%clk 0:01:13]}  hxg4 {[%clk 0:01:01]} 35. hxg4 {[%clk 0:01:14]}  f5 {[%clk 0:00:58]} 36. Kf3 {[%clk 0:01:01]}  Re1 {[%clk 0:00:56]} 37. e7+ {[%clk 0:00:30]}  Kf7 {[%clk 0:00:55]} 38. g5 {[%clk 0:00:26]}  Rxe7 {[%clk 0:00:42]} 39. g6+ {[%clk 0:00:24]}  Ke8 {[%clk 0:00:38]} 40. Kf4 {[%clk 0:00:18]}  Re2 {[%clk 0:00:36]} 41. f3 {[%clk 0:00:18]}  Rf2 {[%clk 0:00:31]} 42. Ra7 {[%clk 0:00:17]}  Kf8 {[%clk 0:00:31]} 43. Rf7+ {[%clk 0:00:18]}  Kg8 {[%clk 0:00:31]} 44. Rxf5 {[%clk 0:00:17]}  Rf1 {[%clk 0:00:29]} 45. Rd5 {[%clk 0:00:16]}  Kf8 {[%clk 0:00:29]} 46. Rd7 {[%clk 0:00:16]}  Rf2 {[%clk 0:00:27]} 47. Rf7+ {[%clk 0:00:15]}  Kg8 {[%clk 0:00:27]} 48. Kg5 {[%clk 0:00:15]}  Rg2+ {[%clk 0:00:23]} 49. Kf5 {[%clk 0:00:15]}  Rf2 {[%clk 0:00:20]} 50. f4 {[%clk 0:00:15]}  Rf1 {[%clk 0:00:20]} 51. Rd7 {[%clk 0:00:15]}  Kf8 {[%clk 0:00:20]} 52. Rd5 {[%clk 0:00:15]}  Ke7 {[%clk 0:00:18]} 53. Re5+ {[%clk 0:00:15]}  Kf8 {[%clk 0:00:19]} 54. Rb5 {[%clk 0:00:15]}  Ke7 {[%clk 0:00:18]} 55. Rb7+ {[%clk 0:00:15]}  Kf8 {[%clk 0:00:18]} 56. Rb8+ {[%clk 0:00:16]}  Ke7 {[%clk 0:00:18]} 57. Rg8 {[%clk 0:00:17]}  Rf2 {[%clk 0:00:16]} 58. Rxg7+ {[%clk 0:00:17]}  Kf8 {[%clk 0:00:17]} 59. Rf7+ {[%clk 0:00:17]}  Kg8 {[%clk 0:00:17]} 60. Rb7 {[%clk 0:00:17]}  Ra2 {[%clk 0:00:15]} 61. Kg5 {[%clk 0:00:17]}  Rg2+ {[%clk 0:00:14]} 62. Kf6 {[%clk 0:00:17]}  Rb2 {[%clk 0:00:13]} 63. Rxb2 {[%clk 0:00:17]} 1-0


[Site "https://www.chess.com"]

[Event "Titled Tuesday Blitz April 19 Early 2022"]
[White "Alinasab, Mobina"]
[Black "Ocelak, Jakub"]
[WhiteFideId "12528897"]
[BlackFideId "23707933"]
[WhiteElo "2031"]
[BlackElo "2048"]
[Result "1-0"]
[Round "08"]
[TimeControl "180+1"]
[Date "2022.04.19"]
[WhiteClock "0:00:24"]
[BlackClock "0:00:05"]

1. e4 {[%clk 0:03:00]}  c6 {[%clk 0:02:56]} 2. d4 {[%clk 0:02:56]}  d5 {[%clk 0:02:56]} 3. exd5 {[%clk 0:02:56]}  cxd5 {[%clk 0:02:56]} 4. Bd3 {[%clk 0:02:52]}  Nc6 {[%clk 0:02:45]} 5. c3 {[%clk 0:02:47]}  Nf6 {[%clk 0:02:36]} 6. Ne2 {[%clk 0:02:39]}  g6 {[%clk 0:02:28]} 7. O-O {[%clk 0:02:37]}  Bg7 {[%clk 0:02:25]} 8. Re1 {[%clk 0:02:36]}  O-O {[%clk 0:02:20]} 9. Nd2 {[%clk 0:02:35]}  Bf5 {[%clk 0:02:18]} 10. Nf3 {[%clk 0:02:34]}  Bxd3 {[%clk 0:02:17]} 11. Qxd3 {[%clk 0:02:35]}  e6 {[%clk 0:02:17]} 12. Bf4 {[%clk 0:02:25]}  Ne4 {[%clk 0:02:07]} 13. Qe3 {[%clk 0:02:23]}  Ne7 {[%clk 0:02:02]} 14. Ne5 {[%clk 0:02:10]}  Nf5 {[%clk 0:01:53]} 15. Qh3 {[%clk 0:02:08]}  Qh4 {[%clk 0:01:42]} 16. Qxh4 {[%clk 0:02:04]}  Nxh4 {[%clk 0:01:43]} 17. f3 {[%clk 0:01:59]}  Nf6 {[%clk 0:01:39]} 18. Bg5 {[%clk 0:01:53]}  Nf5 {[%clk 0:01:29]} 19. Bxf6 {[%clk 0:01:50]}  Bxf6 {[%clk 0:01:27]} 20. Nd7 {[%clk 0:01:50]}  Kg7 {[%clk 0:01:24]} 21. Nxf8 {[%clk 0:01:41]}  Kxf8 {[%clk 0:01:19]} 22. Nf4 {[%clk 0:01:42]}  b5 {[%clk 0:01:16]} 23. Nd3 {[%clk 0:01:39]}  a5 {[%clk 0:01:09]} 24. a4 {[%clk 0:01:22]}  Rb8 {[%clk 0:00:54]} 25. axb5 {[%clk 0:01:19]}  Rxb5 {[%clk 0:00:55]} 26. Ra4 {[%clk 0:01:18]}  Ne7 {[%clk 0:00:52]} 27. Rea1 {[%clk 0:01:09]}  Nc6 {[%clk 0:00:50]} 28. R1a2 {[%clk 0:01:06]}  Ke7 {[%clk 0:00:48]} 29. Nc5 {[%clk 0:01:02]}  Kd6 {[%clk 0:00:41]} 30. Nd3 {[%clk 0:00:44]}  Kc7 {[%clk 0:00:36]} 31. f4 {[%clk 0:00:42]}  Bd8 {[%clk 0:00:26]} 32. Ne5 {[%clk 0:00:36]}  Nxe5 {[%clk 0:00:24]} 33. fxe5 {[%clk 0:00:37]}  Kc6 {[%clk 0:00:23]} 34. Kf2 {[%clk 0:00:32]}  Rb3 {[%clk 0:00:22]} 35. Ke3 {[%clk 0:00:31]}  Bb6 {[%clk 0:00:11]} 36. Kd3 {[%clk 0:00:28]}  Rb5 {[%clk 0:00:10]} 37. b4 {[%clk 0:00:24]}  axb4 {[%clk 0:00:10]} 38. Rxb4 {[%clk 0:00:25]}  Rxb4 {[%clk 0:00:09]} 39. cxb4 {[%clk 0:00:26]}  Kb5 {[%clk 0:00:10]} 40. Kc3 {[%clk 0:00:26]}  Bd8 {[%clk 0:00:07]} 41. Ra7 {[%clk 0:00:25]}  f6 {[%clk 0:00:05]} 42. Rd7 {[%clk 0:00:24]} 1-0


[Site "https://www.chess.com"]

[Event "Titled Tuesday Blitz April 19 Early 2022"]
[White "Al-Tarboush, Ward"]
[Black "Rom, Jasper"]
[WhiteFideId "7601450"]
[BlackFideId "2023733"]
[WhiteElo "2276"]
[BlackElo "2233"]
[Result "1-0"]
[Round "08"]
[TimeControl "180+1"]
[Date "2022.04.19"]
[WhiteClock "0:02:10"]
[BlackClock "0:00:01"]

1. e4 {[%clk 0:03:00]}  e6 {[%clk 0:02:59]} 2. d4 {[%clk 0:03:00]}  d5 {[%clk 0:02:59]} 3. exd5 {[%clk 0:03:01]}  exd5 {[%clk 0:02:58]} 4. Bd3 {[%clk 0:03:02]}  Nc6 {[%clk 0:02:58]} 5. Nf3 {[%clk 0:02:55]}  Bg4 {[%clk 0:02:56]} 6. c3 {[%clk 0:02:54]}  Bd6 {[%clk 0:02:56]} 7. O-O {[%clk 0:02:53]}  Nge7 {[%clk 0:02:56]} 8. Nbd2 {[%clk 0:02:53]}  Qd7 {[%clk 0:02:55]} 9. Re1 {[%clk 0:02:54]}  O-O {[%clk 0:02:49]} 10. Nf1 {[%clk 0:02:53]}  Ng6 {[%clk 0:02:43]} 11. Ne3 {[%clk 0:02:52]}  Be6 {[%clk 0:02:37]} 12. Ng5 {[%clk 0:02:51]}  Nf4 {[%clk 0:02:22]} 13. Bxh7+ {[%clk 0:02:37]}  Kh8 {[%clk 0:02:21]} 14. g3 {[%clk 0:02:32]}  Nh3+ {[%clk 0:00:46]} 15. Nxh3 {[%clk 0:02:32]}  Kxh7 {[%clk 0:00:46]} 16. Qh5+ {[%clk 0:02:30]}  Kg8 {[%clk 0:00:45]} 17. Ng5 {[%clk 0:02:30]}  Bf5 {[%clk 0:00:45]} 18. Nxd5 {[%clk 0:02:17]}  Bxg3 {[%clk 0:00:19]} 19. hxg3 {[%clk 0:02:16]}  Qxd5 {[%clk 0:00:18]} 20. Bf4 {[%clk 0:02:15]}  Bg6 {[%clk 0:00:14]} 21. Qh4 {[%clk 0:02:13]}  f6 {[%clk 0:00:10]} 22. Ne6 {[%clk 0:02:11]}  Rfe8 {[%clk 0:00:07]} 23. Nxc7 {[%clk 0:02:11]}  Rxe1+ {[%clk 0:00:06]} 24. Rxe1 {[%clk 0:02:12]}  Qd8 {[%clk 0:00:01]} 25. Nxa8 {[%clk 0:02:11]}  Qxa8 {[%clk 0:00:02]} 26. Qg4 {[%clk 0:02:11]}  Bf7 {[%clk 0:00:01]} 27. Qd7 {[%clk 0:02:11]}  Qf8 {[%clk 0:00:01]} 28. Bd6 {[%clk 0:02:10]} 1-0


[Site "https://www.chess.com"]

[Event "Titled Tuesday Blitz April 19 Early 2022"]
[White "Ambartsumova, Karina"]
[Black "Belenkaya, Dina"]
[WhiteFideId "4166299"]
[BlackFideId "24142654"]
[WhiteElo "2262"]
[BlackElo "2196"]
[Result "0-1"]
[Round "08"]
[TimeControl "180+1"]
[Date "2022.04.19"]
[WhiteClock "0:00:03"]
[BlackClock "0:00:08"]

1. c4 {[%clk 0:03:00]}  e5 {[%clk 0:02:58]} 2. Nc3 {[%clk 0:02:59]}  Nc6 {[%clk 0:02:58]} 3. Nf3 {[%clk 0:03:00]}  Nf6 {[%clk 0:02:57]} 4. a3 {[%clk 0:03:00]}  g6 {[%clk 0:02:56]} 5. g3 {[%clk 0:02:56]}  Bg7 {[%clk 0:02:55]} 6. Bg2 {[%clk 0:02:57]}  O-O {[%clk 0:02:55]} 7. O-O {[%clk 0:02:57]}  d6 {[%clk 0:02:55]} 8. d3 {[%clk 0:02:57]}  Be6 {[%clk 0:02:42]} 9. Rb1 {[%clk 0:02:55]}  Qd7 {[%clk 0:02:42]} 10. Re1 {[%clk 0:02:54]}  Bh3 {[%clk 0:02:41]} 11. Bh1 {[%clk 0:02:54]}  Qg4 {[%clk 0:02:39]} 12. b4 {[%clk 0:02:45]}  Qh5 {[%clk 0:02:37]} 13. b5 {[%clk 0:02:21]}  Nd4 {[%clk 0:02:32]} 14. Nxd4 {[%clk 0:02:18]}  exd4 {[%clk 0:02:33]} 15. Nd5 {[%clk 0:02:17]}  Nxd5 {[%clk 0:02:06]} 16. Bxd5 {[%clk 0:02:18]}  Rab8 {[%clk 0:02:03]} 17. Bf3 {[%clk 0:02:04]}  Bg4 {[%clk 0:01:44]} 18. Bxg4 {[%clk 0:02:04]}  Qxg4 {[%clk 0:01:45]} 19. e4 {[%clk 0:02:02]}  Qh3 {[%clk 0:01:37]} 20. Qf3 {[%clk 0:01:56]}  f5 {[%clk 0:01:31]} 21. Qg2 {[%clk 0:01:56]}  Qh5 {[%clk 0:01:30]} 22. exf5 {[%clk 0:01:43]}  Qxf5 {[%clk 0:01:29]} 23. Qd5+ {[%clk 0:00:34]}  Qxd5 {[%clk 0:01:29]} 24. cxd5 {[%clk 0:00:35]}  Rf5 {[%clk 0:01:29]} 25. Re7 {[%clk 0:00:35]}  Rc8 {[%clk 0:01:29]} 26. Bf4 {[%clk 0:00:28]}  Rxd5 {[%clk 0:01:28]} 27. a4 {[%clk 0:00:29]}  Kf8 {[%clk 0:01:00]} 28. Rbe1 {[%clk 0:00:27]}  Rc5 {[%clk 0:00:54]} 29. Rd7 {[%clk 0:00:27]}  g5 {[%clk 0:00:45]} 30. Ree7 {[%clk 0:00:25]}  Bf6 {[%clk 0:00:18]} 31. Rxh7 {[%clk 0:00:18]}  gxf4 {[%clk 0:00:13]} 32. Rhf7+ {[%clk 0:00:07]}  Ke8 {[%clk 0:00:13]} 33. Kg2 {[%clk 0:00:05]}  Rd8 {[%clk 0:00:13]} 34. Rxd8+ {[%clk 0:00:04]}  Bxd8 {[%clk 0:00:14]} 35. Rh7 {[%clk 0:00:04]}  Be7 {[%clk 0:00:14]} 36. h4 {[%clk 0:00:04]}  fxg3 {[%clk 0:00:14]} 37. Kxg3 {[%clk 0:00:04]}  Rc3 {[%clk 0:00:14]} 38. h5 {[%clk 0:00:04]}  Rxd3+ {[%clk 0:00:15]} 39. Kg4 {[%clk 0:00:04]}  Rd1 {[%clk 0:00:15]} 40. h6 {[%clk 0:00:04]}  Rg1+ {[%clk 0:00:15]} 41. Kf5 {[%clk 0:00:04]}  d3 {[%clk 0:00:16]} 42. Rg7 {[%clk 0:00:04]}  Rf1 {[%clk 0:00:15]} 43. f4 {[%clk 0:00:03]}  Rh1 {[%clk 0:00:12]} 44. h7 {[%clk 0:00:03]}  Bf8 {[%clk 0:00:11]} 45. Rxc7 {[%clk 0:00:03]}  d2 {[%clk 0:00:11]} 46. Ke6 {[%clk 0:00:02]}  Re1+ {[%clk 0:00:11]} 47. Kf6 {[%clk 0:00:02]}  d1=Q {[%clk 0:00:09]} 48. Rc8+ {[%clk 0:00:03]}  Kd7 {[%clk 0:00:09]} 49. Rxf8 {[%clk 0:00:03]}  Qd4+ {[%clk 0:00:09]} 50. Kf7 {[%clk 0:00:03]}  Qd5+ {[%clk 0:00:09]} 51. Kg6 {[%clk 0:00:03]}  Rg1+ {[%clk 0:00:08]} 52. Kh6 {[%clk 0:00:03]}  Rh1+ {[%clk 0:00:08]} 53. Kg6 {[%clk 0:00:03]}  Qe4+ {[%clk 0:00:08]} 54. Kg5 {[%clk 0:00:03]}  Rg1+ {[%clk 0:00:08]} 55. Kf6 {[%clk 0:00:03]}  Qe6# {[%clk 0:00:08]} 0-1


[Site "https://www.chess.com"]

[Event "Titled Tuesday Blitz April 19 Early 2022"]
[White "Andreikin, Dmitry"]
[Black "Nakamura, Hikaru"]
[WhiteFideId "4158814"]
[BlackFideId "2016192"]
[WhiteElo "2736"]
[BlackElo "2850"]
[Result "1-0"]
[Round "08"]
[TimeControl "180+1"]
[Date "2022.04.19"]
[WhiteClock "0:00:06"]
[BlackClock "0:00:03"]

1. d4 {[%clk 0:03:00]}  Nf6 {[%clk 0:02:56]} 2. c4 {[%clk 0:03:01]}  e6 {[%clk 0:02:56]} 3. Nf3 {[%clk 0:03:01]}  d5 {[%clk 0:02:55]} 4. g3 {[%clk 0:03:01]}  Be7 {[%clk 0:02:55]} 5. Bg2 {[%clk 0:03:01]}  O-O {[%clk 0:02:56]} 6. O-O {[%clk 0:03:02]}  dxc4 {[%clk 0:02:56]} 7. Qc2 {[%clk 0:02:58]}  b5 {[%clk 0:02:52]} 8. a4 {[%clk 0:02:58]}  Bb7 {[%clk 0:02:52]} 9. axb5 {[%clk 0:02:58]}  a6 {[%clk 0:02:53]} 10. Nc3 {[%clk 0:02:54]}  axb5 {[%clk 0:02:52]} 11. Rxa8 {[%clk 0:02:55]}  Bxa8 {[%clk 0:02:53]} 12. Nxb5 {[%clk 0:02:55]}  Bd5 {[%clk 0:02:54]} 13. Bg5 {[%clk 0:02:54]}  h6 {[%clk 0:02:33]} 14. Bxf6 {[%clk 0:02:53]}  Bxf6 {[%clk 0:02:34]} 15. e4 {[%clk 0:02:48]}  Bb7 {[%clk 0:02:34]} 16. Rd1 {[%clk 0:02:30]}  Nd7 {[%clk 0:02:22]} 17. e5 {[%clk 0:02:25]}  Be7 {[%clk 0:02:20]} 18. Qxc4 {[%clk 0:02:23]}  Qa8 {[%clk 0:02:05]} 19. Ne1 {[%clk 0:02:10]}  c5 {[%clk 0:01:35]} 20. Nc7 {[%clk 0:01:31]}  Qc8 {[%clk 0:01:08]} 21. Nxe6 {[%clk 0:01:30]}  fxe6 {[%clk 0:00:41]} 22. Qxe6+ {[%clk 0:01:31]}  Rf7 {[%clk 0:00:41]} 23. Bh3 {[%clk 0:01:30]}  Bf8 {[%clk 0:00:15]} 24. Nd3 {[%clk 0:00:52]}  Qc7 {[%clk 0:00:10]} 25. Qg6 {[%clk 0:00:39]}  Bd5 {[%clk 0:00:07]} 26. Nf4 {[%clk 0:00:38]}  Rxf4 {[%clk 0:00:06]} 27. gxf4 {[%clk 0:00:37]}  cxd4 {[%clk 0:00:07]} 28. Rxd4 {[%clk 0:00:24]}  Qc1+ {[%clk 0:00:05]} 29. Bf1 {[%clk 0:00:25]}  Bf7 {[%clk 0:00:06]} 30. Qd3 {[%clk 0:00:17]}  Nc5 {[%clk 0:00:06]} 31. Qc3 {[%clk 0:00:17]}  Qa1 {[%clk 0:00:05]} 32. Rd8 {[%clk 0:00:16]}  Ne6 {[%clk 0:00:05]} 33. Rxf8+ {[%clk 0:00:13]}  Nxf8 {[%clk 0:00:05]} 34. f5 {[%clk 0:00:13]}  Qd1 {[%clk 0:00:04]} 35. e6 {[%clk 0:00:13]}  Qg4+ {[%clk 0:00:04]} 36. Qg3 {[%clk 0:00:13]}  Qxf5 {[%clk 0:00:04]} 37. exf7+ {[%clk 0:00:12]}  Qxf7 {[%clk 0:00:05]} 38. b4 {[%clk 0:00:11]}  Qd5 {[%clk 0:00:05]} 39. b5 {[%clk 0:00:10]}  Qc5 {[%clk 0:00:04]} 40. Qe3 {[%clk 0:00:10]}  Qd6 {[%clk 0:00:02]} 41. b6 {[%clk 0:00:09]}  Nd7 {[%clk 0:00:03]} 42. b7 {[%clk 0:00:09]}  Qg6+ {[%clk 0:00:03]} 43. Qg3 {[%clk 0:00:09]}  Qb6 {[%clk 0:00:04]} 44. Qf3 {[%clk 0:00:06]}  Qc7 {[%clk 0:00:04]} 45. Qd5+ {[%clk 0:00:06]}  Kh8 {[%clk 0:00:04]} 46. Qxd7 {[%clk 0:00:06]}  Qxd7 {[%clk 0:00:04]} 47. b8=Q+ {[%clk 0:00:06]}  Kh7 {[%clk 0:00:05]} 48. Qg3 {[%clk 0:00:07]}  Kh8 {[%clk 0:00:04]} 49. h4 {[%clk 0:00:07]}  Qf5 {[%clk 0:00:03]} 50. Bh3 {[%clk 0:00:07]}  Qb1+ {[%clk 0:00:03]} 51. Kh2 {[%clk 0:00:07]}  Qb2 {[%clk 0:00:03]} 52. Bf5 {[%clk 0:00:07]}  Qf6 {[%clk 0:00:03]} 53. Qb8+ {[%clk 0:00:06]} 1-0


[Site "https://www.chess.com"]

[Event "Titled Tuesday Blitz April 19 Early 2022"]
[White "Antonio, Jorge Carlos"]
[Black "De Souza, Cristiano Gomes"]
[WhiteFideId "113190"]
[BlackFideId "2151758"]
[WhiteElo "2247"]
[BlackElo "2068"]
[Result "0-1"]
[Round "08"]
[TimeControl "180+1"]
[Date "2022.04.19"]
[WhiteClock "0:00:10"]
[BlackClock "0:01:32"]

1. d4 {[%clk 0:03:00]}  Nf6 {[%clk 0:02:59]} 2. Nf3 {[%clk 0:03:00]}  g6 {[%clk 0:02:59]} 3. c4 {[%clk 0:03:00]}  Bg7 {[%clk 0:03:00]} 4. Nc3 {[%clk 0:03:00]}  d6 {[%clk 0:03:00]} 5. e4 {[%clk 0:03:00]}  O-O {[%clk 0:03:01]} 6. Be2 {[%clk 0:02:59]}  e5 {[%clk 0:02:58]} 7. O-O {[%clk 0:02:59]}  Nc6 {[%clk 0:02:57]} 8. d5 {[%clk 0:02:59]}  Ne7 {[%clk 0:02:58]} 9. Ne1 {[%clk 0:02:59]}  Nd7 {[%clk 0:02:55]} 10. Be3 {[%clk 0:02:59]}  f5 {[%clk 0:02:55]} 11. f3 {[%clk 0:02:59]}  f4 {[%clk 0:02:55]} 12. Bf2 {[%clk 0:02:59]}  h5 {[%clk 0:02:54]} 13. Rc1 {[%clk 0:02:59]}  Kh7 {[%clk 0:02:54]} 14. c5 {[%clk 0:02:59]}  g5 {[%clk 0:02:55]} 15. cxd6 {[%clk 0:02:58]}  cxd6 {[%clk 0:02:54]} 16. Nb5 {[%clk 0:02:58]}  Nb6 {[%clk 0:02:47]} 17. Nc7 {[%clk 0:02:56]}  Rb8 {[%clk 0:02:46]} 18. Ne6 {[%clk 0:02:49]}  Bxe6 {[%clk 0:02:45]} 19. dxe6 {[%clk 0:02:49]}  d5 {[%clk 0:02:42]} 20. exd5 {[%clk 0:02:41]}  Nbxd5 {[%clk 0:02:41]} 21. Bd3+ {[%clk 0:02:39]}  Kh6 {[%clk 0:02:41]} 22. Be4 {[%clk 0:02:36]}  b6 {[%clk 0:02:38]} 23. Nd3 {[%clk 0:02:34]}  Nf6 {[%clk 0:02:27]} 24. Qe2 {[%clk 0:02:26]}  Qd6 {[%clk 0:02:24]} 25. Rfd1 {[%clk 0:02:24]}  Qxe6 {[%clk 0:02:23]} 26. Nb4 {[%clk 0:02:19]}  Rbd8 {[%clk 0:02:21]} 27. Rxd8 {[%clk 0:02:15]}  Rxd8 {[%clk 0:02:20]} 28. h3 {[%clk 0:02:03]}  a5 {[%clk 0:02:15]} 29. Nc6 {[%clk 0:01:49]}  Rc8 {[%clk 0:02:04]} 30. Qb5 {[%clk 0:00:32]}  Nxe4 {[%clk 0:02:03]} 31. fxe4 {[%clk 0:00:18]}  Rxc6 {[%clk 0:01:59]} 32. Rd1 {[%clk 0:00:18]}  Ng6 {[%clk 0:01:46]} 33. h4 {[%clk 0:00:17]}  g4 {[%clk 0:01:45]} 34. Rd5 {[%clk 0:00:15]}  g3 {[%clk 0:01:44]} 35. Be1 {[%clk 0:00:14]}  Nxh4 {[%clk 0:01:41]} 36. Kf1 {[%clk 0:00:14]}  f3 {[%clk 0:01:38]} 37. Qd3 {[%clk 0:00:13]}  fxg2+ {[%clk 0:01:38]} 38. Kg1 {[%clk 0:00:12]}  Qh3 {[%clk 0:01:33]} 39. Bd2+ {[%clk 0:00:10]}  Kh7 {[%clk 0:01:32]} 0-1


[Site "https://www.chess.com"]